Cogmind - Beta 13 @@@ ROGUE MODE // 2024.03.10 @ 02:53:58 Player: rCartos Result: Destroyed by G-34 Mercenary with Small Laser Performance ------------- Evolutions (1) 500 Regions Visited (2) 400 Robots Destroyed (32) 160 Value Destroyed (745) 745 Prototype IDs (1) 20 Alien Tech Used (0) 0 Bonus (58) 58 TOTAL SCORE: 1883 Bonus ------- High Alert Combat Kills 58 Cogmind --------- Core Integrity 0/400 Matter 11/300 Energy 31/100 System Corruption 0% Temperature Warm (162) Movement Flying (320) Ox4 Location -9/Materials Parts ------- > --- POWER (2) -------- (None) > --- PROPULSION (2) --- Improved Flight Unit > --- UTILITY (3) ------ Large Storage Unit Hacking Suite > --- WEAPON (2) ------- Pulse Rifle > --- INVENTORY (15) --- VTOL Module Visual Processing Unit Improved EM Shotgun Medium Laser Pulse Rifle Advanced Beam Cannon Light Assault Rifle Peak State ------------ > --- POWER ------------ Light Ion Engine Light Ion Engine > --- PROPULSION ------- Aluminum Leg Aluminum Leg > --- UTILITY ---------- Large Storage Unit Hacking Suite Hacking Suite > --- WEAPON ----------- Improved Grenade Launcher Improved Grenade Launcher > --- INVENTORY -------- Improved Flight Unit Improved Flight Unit Visual Processing Unit Medium Laser Small Laser Small Laser Pulse Rifle Pulse Rifle Advanced Beam Cannon Light Assault Rifle [Rating: 19] Favorites ----------- Power Ion Engine Engine Ion Engine Propulsion Wheel Leg Aluminum Leg Wheel Wheel Flight Unit Improved Flight Unit Utility Hacking Suite Device Tractor Beam Storage Large Storage Unit Hackware Hacking Suite Weapon Improved Grenade Launcher Energy Gun Small Laser Launcher Improved Grenade Launcher Build | -11 -10 -9 ------- Run | Yrd Mat Mat Slots Evolved 2 | . . 2 Power 1 | . . 1 Propulsion . | . . . Utility 1 | . . 1 Weapon . | . . . Parts Attached 30 | 7 2 21 Power 6 | 1 . 5 Engine 6 | 1 . 5 Core . | . . . Reactor . | . . . Propulsion 7 | 2 . 5 Treads . | . . . Leg 2 | . . 2 Wheel 4 | 2 . 2 Hover . | . . . Flight 1 | . . 1 Utility 7 | 2 1 4 Device 2 | 1 . 1 Storage 2 | 1 1 . Processor . | . . . Hackware 3 | . . 3 Protection . | . . . Artifact . | . . . Weapon 10 | 2 1 7 Energy Gun 6 | 2 1 3 Energy Cannon . | . . . Ballistic Gun . | . . . Ballistic Cannon . | . . . Launcher 4 | . . 4 Special Weapon . | . . . Impact Weapon . | . . . Slashing Weapon . | . . . Piercing Weapon . | . . . Special Melee Weapon . | . . . Unidentified Prototypes 1 | . . 1 Parts Lost 18 | . . 18 Power 5 | . . 5 Propulsion 4 | . . 4 Utility 3 | . . 3 Weapon 6 | . . 6 Highest Loss Streak 6 | . . 6 To Critical Strikes . | . . . Average Slot Usage (%) 90 | . 100 86 Engine 14 | . 14 15 Leg 6 | . . 9 Wheel 14 | . 28 8 Flight 1 | . . 1 Device 6 | . 14 3 Storage 11 | . 14 11 Hackware 11 | . . 17 Energy Gun 11 | . 28 3 Launcher 10 | . . 15 Naked Turns . | . . . Heaviest Build 41 | 13 29 41 Greatest Support 26 | 26 26 26 Greatest Overweight (x) 5 | . 1 5 Average Overweight (x) . | . . 1 Largest Inventory Capacity 15 | 8 15 15 Average Capacity 14 | 7 14 15 Most Carried 15 | 5 10 15 Average Carried 8 | 1 5 10 Final Capacity 15 | 8 15 15 Final Carried 10 | 2 10 7 Class Distribution -------------------- 60% | Mutant 39% | Hacker-Mutant Dominant Class ---------------- Mutant | -10/Materials Hacker-Mutant | -9/Materials Resources | -11 -10 -9 ----------- Run | Yrd Mat Mat Matter Collected 447 | 270 17 160 Remotely 138 | 69 17 52 Salvage Created 728 | 103 108 517 Parts 54 | 6 8 40 Haulers Intercepted 2 | . . 2 Recyclers Shooed 3 | . . 3 Parts Field Recycled . | . . . Retrieved Matter . | . . . Parts Self-Destructed . | . . . Prevented . | . . . Kills | -11 -10 -9 ------- Run | Yrd Mat Mat Combat Hostiles Destroyed 22 | . 4 18 Guns 6 | . 4 2 AOE 16 | . . 16 Classes Destroyed 9 | 2 2 5 Worker 1 | . . 1 Builder 3 | . . 3 Tunneler 1 | 1 . . Hauler 2 | . . 2 Recycler 2 | 1 . 1 Watcher 1 | . . 1 Swarmer 6 | . 2 4 Grunt 13 | . 2 11 Sentry 3 | . . 3 Best Kill Streak 9 | 2 2 9 Combat Bots Only 6 | . 2 6 Max Kills in Single Turn 6 | 1 1 6 Gunslinging . | . . . Exploded 3 | . . 3 Melee . | . . . Uniques/NPCs Destroyed . | . . . Combat | -11 -10 -9 -------- Run | Yrd Mat Mat Hostile Shots Fired 211 | . 12 199 Missed 70 | . 4 66 Damage Taken 1746 | . 77 1669 Core 407 | . . 407 Absorbed by Shields . | . . . Core Remaining (%) 100 | 100 100 . Volleys Fired 40 | 4 12 24 Largest 2 | 2 2 2 Hottest 103 | 80 90 103 Shots Fired 70 | 8 21 41 Gun 44 | 8 21 15 Cannon . | . . . Launcher 26 | . . 26 Special . | . . . Kinetic . | . . . Thermal 44 | 8 21 15 Explosive 26 | . . 26 Electromagnetic . | . . . Robot Hit Streak 8 | 5 5 8 Robot Miss Streak 7 | 1 7 3 Penetration Max . | . . . Secondary Targets 1 | . . 1 Max Gunslinging Chain 1 | . . 1 Shots Hit Robots 34 | 5 8 21 Core Hits 48 | 3 7 38 Critical Kills . | . . . Critical Parts Destroyed . | . . . Critical Strikes 1 | . . 1 Burn 1 | . . 1 Melee Attacks . | . . . Impact . | . . . Slashing . | . . . Piercing . | . . . Sneak Attacks . | . . . Combat Hostiles . | . . . Follow-up Attacks . | . . . Damage Inflicted 2027 | 56 110 1861 Guns 288 | 56 95 137 Cannons . | . . . Explosions 1715 | . . 1715 Melee . | . . . Ramming 24 | . 15 9 Kinetic . | . . . Thermal 288 | 56 95 137 Explosive 1715 | . . 1715 Electromagnetic . | . . . Impact . | . . . Slashing . | . . . Piercing . | . . . Highest Corruption . | . . . Average Corruption . | . . . Corruption Purged . | . . . Corruption Blocked . | . . . Overload Shots . | . . . Overflow Damage 99 | . . 99 Projectiles . | . . . Explosions 99 | . . 99 Melee . | . . . Knockbacks . | . . . Impact . | . . . Kinetic . | . . . Secondary . | . . . Self-Inflicted Damage 183 | . 7 176 Shots 5 | . . 5 Rammed 2 | . 2 . Targets Rammed 6 | . 2 4 Kicked 4 | . . 4 Crushed . | . . . Highest Temperature 156 | 36 120 156 Average Temperature 33 | 20 46 27 Received Heat Transfer 663 | . 18 645 Siege Activations . | . . . Robots Corrupted . | . . . Combat Hostiles . | . . . Parts Fried . | . . . Impact Corruptions . | . . . Robots Melted . | . . . Combat Hostiles . | . . . Parts Melted 1 | . . 1 Heat Transferred 769 | 125 260 384 Parts Sabotaged . | . . . Parts Stolen . | . . . Parts Stripped . | . . . Power Chain Reactions . | . . . Alert | -11 -10 -9 ------- Run | Yrd Mat Mat Peak Influence 651 | 10 91 651 Initial 15 | . 6 15 Average 249 | 4 31 394 Maximum Alert Level 2 | . . 2 Low Security (%) 53 | 100 100 23 Level 1 10 | . . 16 Level 2 36 | . . 60 Level 3 . | . . . Level 4 . | . . . Level 5 . | . . . High Security . | . . . Max Security . | . . . Squads Dispatched 6 | . 2 4 Investigation 3 | . 2 1 Extermination . | . . . Reinforcement 3 | . . 3 Assault . | . . . Garrison . | . . . Intercept . | . . . Searches Triggered . | . . . Construction Impeded 1 | . . 1 Haulers Reinforced . | . . . Active Scanning Responses . | . . . Cargo Convoy Interrupts . | . . . Stealth | -11 -10 -9 --------- Run | Yrd Mat Mat Distress Signals 2 | . . 2 Communications Jammed . | . . . Distress Signals . | . . . Times Spotted 34 | . 8 26 Peak Tracking Total 8 | . 4 8 Tactical Retreats 1 | . . 1 Traps | -11 -10 -9 ------- Run | Yrd Mat Mat Traps Triggered 1 | . 1 . Indirectly . | . . . Trap Hack Attempts . | . . . Triggered . | . . . Disarmed . | . . . Reprogrammed . | . . . Reused . | . . . Traps Extracted . | . . . Installed . | . . . Triggered . | . . . Machines | -11 -10 -9 ---------- Run | Yrd Mat Mat Machines Disabled 4 | . . 4 Max in Single Turn 1 | . . 1 Machines Repaired . | . . . Machines Dismantled . | . . . Machines Sabotaged . | . . . Overloaded Fab Kills . | . . . Hacking | -11 -10 -9 --------- Run | Yrd Mat Mat Machines Accessed 3 | . 2 1 Terminals 3 | . 2 1 Fabricators . | . . . Repair Stations . | . . . Recycling Units . | . . . Scanalyzers . | . . . Garrison Access . | . . . Total Hacks 13 | . 8 5 Successful 6 | . 4 2 Failed 7 | . 4 3 Catastrophic . | . . . Database Lockouts . | . . . Manual . | . . . Terminals 13 | . 8 5 Fabricators . | . . . Repair Stations . | . . . Recycling Units . | . . . Scanalyzers . | . . . Garrison Access . | . . . Terminal Hacks 6 | . 4 2 Robot Analysis 1 | . . 1 Emergency Access Points 1 | . 1 . Alert Level 1 | . 1 . Unreport Threat 2 | . 2 . Zone Layout 1 | . . 1 Fabricator Hacks . | . . . Repair Station Hacks . | . . . Recycling Unit Hacks . | . . . Scanalyzer . | . . . Garrison Access Hacks . | . . . Unauthorized Hacks . | . . . Terminals . | . . . Fabricators . | . . . Repair Stations . | . . . Recycling Units . | . . . Scanalyzers . | . . . Garrison Access . | . . . Data Cores Recovered . | . . . Used . | . . . Hacking Detections 3 | . 2 1 Full Trace Events 2 | . 1 1 Feedback Events . | . . . Feedback Blocked . | . . . Robot Schematics Acquired . | . . . Robots Built . | . . . Authchips . | . . . Time . | . . . Total Robot Build Rating . | . . . Part Schematics Acquired . | . . . Parts Built . | . . . Authchips . | . . . Time . | . . . Total Part Build Rating . | . . . Parts Repaired . | . . . Time . | . . . Parts Recycled . | . . . Recycled Matter . | . . . Retrieved Matter . | . . . Retrieved Components . | . . . Parts Scanalyzed . | . . . Part Schematics Acquired . | . . . Parts Damaged . | . . . Bothacking | -11 -10 -9 ------------ Run | Yrd Mat Mat Used RIF Installer . | . . . Robots Hacked . | . . . Non-combat . | . . . Combat . | . . . Robot Hacks Applied . | . . . Relay Couplers Released . | . . . Fabnet Peak Effective % . | . . . Robots Rewired . | . . . Allies Hacked . | . . . Hacks Repelled . | . . . Allies | -11 -10 -9 -------- Run | Yrd Mat Mat Total Allies . | . . . Largest Group . | . . . Highest-Rated Group . | . . . Highest-Rated Ally . | . . . Total Orders . | . . . Ally Attacks . | . . . Total Damage . | . . . Kills . | . . . Allies Corrupted . | . . . Allies Melted . | . . . Intel | -11 -10 -9 ------- Run | Yrd Mat Mat Robot Analysis Total 1 | . . 1 Derelict Logs Recovered . | . . . Drone Launches . | . . . Drone Recoveries . | . . . Exploration | -11 -10 -9 ------------- Run | Yrd Mat Mat Turns Passed 751 | 81 212 458 Spaces Moved 443 | 64 156 223 Core 11 | 11 . . Treads . | . . . Legs 87 | . . 87 Wheels 331 | 53 156 122 Hover . | . . . Flight 14 | . . 14 Fastest Speed 50 | 50 90 95 Average Speed 126 | 83 104 153 Slowest Speed 390 | 90 105 390 Overloaded Moves . | . . . Propulsion Burnouts . | . . . Robots Hopped . | . . . Cave-ins Triggered . | . . . Exploration Rate (%) 20 | 4 30 28 Regions Visited 2 Branch Regions . Pre-discovered Areas . | . . . Known Exits Taken . | . . . Unknown Exits Taken 2 | 1 1 . Scrap Searched . | . . . Spaces Dug . | . . . Terrain Destroyed 196 | . . 196 Melee . | . . . Projectile . | . . . AOE 196 | . . 196 Terrain Rammed . | . . . Walls Destroyed . | . . . Machines Disabled . | . . . Actions | -11 -10 -9 --------- Run | Yrd Mat Mat Total 563 | 83 185 295 Wait . | . . . Move 441 | 63 155 223 Hop . | . . . Pick Up 37 | 9 11 17 Fast Attach . | . . . Attach 27 | 7 1 19 Detach 1 | . . 1 Swap 3 | . 1 2 Drop 8 | . 3 5 Fire 40 | 4 12 24 Melee . | . . . Ram 2 | . 2 . Kick 4 | . . 4 Crush . | . . . Escape Stasis . | . . . Rewire . | . . . Trap . | . . . Miscellaneous . | . . . Route ------- -11/Scrapyard -10/Materials -9/Materials (discovered 1 exit: [Min]) History --------- Turn | Location | Event 18 | -11/Scrapyard | Discovered new exit (range 16) 82 | -11/Scrapyard | Entered Materials 274 | -10/Materials | Discovered new exit (range 10) 294 | -10/Materials | Entered another Materials area 294 | -9/Materials | Evolved 2 slots: Power x1, Utility x1 337 | -9/Materials | Build established: Mutant 502 | -9/Materials | Lost 6 parts (2p2n1u1w) 617 | -9/Materials | Discovered new exit (range 16) 687 | -9/Materials | Core integrity fell below 50% 713 | -9/Materials | Lost 5 parts (1p2n2w) 740 | -9/Materials | Core integrity fell below 20% 752 | -9/Materials | Destroyed by G-34 Mercenary with Small Laser Last Messages --------------- Kicked G-34 Mercenary out of the way. T-07 Excavator is excavating. Imp. Grenade Launcher destroyed. T-07 Excavator is excavating. Aluminum Leg destroyed. T-07 Excavator is excavating. Aluminum Leg destroyed. Identified Imp. Flight Unit. Ion Engine destroyed. Dropped Faulty Imp. Flight Unit. Acquired VTOL Module. Sml. Laser destroyed. G-34 Mercenary suffers critical hit (Burn). Hacking Suite destroyed. Integration Channel disabled. Sml. Laser melted. G-34 Mercenary destroyed. Switching to secondary target: Y-45 Defender. G-34 Mercenary destroyed. Sml. Laser destroyed. Map ----- +----------------------------------------------------+ | | | | | | | | | | | | | | | | | | | | | | | | | | | | | | | | | | | | | | | | | | | | | | | | | ????????????????##############???????????????????? | | ????????????????# Y @ #???????????????????? | | ????????????????# """ " *==#???????????????????? | | ????????????????# """""""""gg#???????????????????? | | ????????????????# """ """=!%#???????????????????? | | ????????????????# #???????????????????? | | ????????????????#######+######???????????????????? | | ????????????????# ###### ?????????????? | | ??????????##????# ????????????? | | ??????????# #???# ###### ??????????????? | | ??????????? ??# ######???????????????????????? | | ???????????## ### #????????????????????????????? | | ???????????# =####?????????????????????????? | | ???????????# !##????????????????????????? | | ???????????+ !#????????????????????????? | | ???????????# !#????????????????????????? | | ???????????# !#????????????????????????? | | ???????????# !#????????????????????????? | | ???????????# !##????????????????????????? | | ???????????# ####?????????????????????????? | | ???????????###### #????????????????????????????? | | ????????????????# #?????#####+########?????????? | | ?????????######## ########## ?????????? | | ????????? + # [[! ## ####?????????? | | ????????? #### + [[! / #????????????? | | ????????? #??# # [[ # #????????????? | +----------------------------------------------------+ Best States ------------- Heat Dissipation 28 Energy Generation 15 Energy Capacity 275 Matter Stores 300 Matter Capacity 300 Sight Range 16 Terrain Scan Density 10 Evasion (%) 50 Offensive Hacking 20 Item Schematics ----------------- None Robot Schematics ------------------ None Fabricated ------------ Nothing Alien Tech Used ----------------- None Achievements -------------- None Challenges ------------ None Game ------ Seed ChipArcInterrupter Manual? 0 Play Time 00:13:49 Cumulative 6.7 hours Start 2024.03.10 @ 02:43:08 End 2024.03.10 @ 02:53:58 Sessions 1 Manual Loads 0 Difficulty Rogue Special Mode None Game No. 17 Rogue 17 Adventurer 0 Explorer 0 Win Type - Total 0 Types 0/0/0/0/0/0/0/0/0 Lore% 10 Gallery% 13 Achievement% 9 Wizard Run 0 Options --------- Layout 1 ASCII 0 Keyboard 0 Movement Arrows Keybinds 0 Fullscreen 1 Font 16/Terminus Map View 25x20 Zoom Use 100% Tactical HUD 0 Map Filters NONE Filters NONE Steam 1 RUN: 0633d875-5597-41b7-8908-534c62c19c69